[Event "Late-Titled-Tuesday-Blitz-June-25-2024"]
[Site "Chess.com"]
[Date "2024.06.25"]
[Round "8"]
[White "ReinisUz"]
[Black "HajiyevKanan"]
[Result "1/2-1/2"]
[WhiteElo "2466"]
[BlackElo "2603"]
[TimeControl "180+1"]
[EndTime "15:29:16 PDT"]
[Termination "Game drawn by repetition"]

1. c4 {[%clk 0:03:00.9]} 1... a6 {[%clk 0:03:00.9]} 2. Nc3 {[%clk 0:03:00.6]}
2... c6 {[%clk 0:03:01.8]} 3. g3 {[%clk 0:03:00.5]} 3... d5 {[%clk 0:03:02.7]}
4. cxd5 {[%clk 0:03:00.4]} 4... cxd5 {[%clk 0:03:03.6]} 5. d4 {[%clk 0:03:01]}
5... Nf6 {[%clk 0:03:04.5]} 6. Bg2 {[%clk 0:03:01.1]} 6... Nc6 {[%clk
0:03:05.2]} 7. Nf3 {[%clk 0:03:01.5]} 7... g6 {[%clk 0:03:05.9]} 8. O-O {[%clk
0:03:01.8]} 8... Bg7 {[%clk 0:03:06.6]} 9. a3 {[%clk 0:03:01.3]} 9... Ne4 {[%clk
0:03:06.6]} 10. e3 {[%clk 0:02:56.3]} 10... Nxc3 {[%clk 0:03:06.8]} 11. bxc3
{[%clk 0:02:56.4]} 11... O-O {[%clk 0:03:07.7]} 12. Nd2 {[%clk 0:02:51.2]} 12...
Na5 {[%clk 0:03:07.2]} 13. a4 {[%clk 0:02:39.7]} 13... Bf5 {[%clk 0:03:02.3]}
14. Qe2 {[%clk 0:02:38.4]} 14... Rc8 {[%clk 0:03:00.1]} 15. Bb2 {[%clk
0:02:37.4]} 15... h5 {[%clk 0:02:51.8]} 16. Rfc1 {[%clk 0:02:36.9]} 16... Qd7
{[%clk 0:02:42.3]} 17. c4 {[%clk 0:02:18.9]} 17... Bg4 {[%clk 0:02:22.5]} 18.
Qd3 {[%clk 0:02:11.7]} 18... dxc4 {[%clk 0:02:11.7]} 19. Nxc4 {[%clk 0:02:09.7]}
19... Nxc4 {[%clk 0:02:10.7]} 20. Rxc4 {[%clk 0:02:08.6]} 20... Rxc4 {[%clk
0:02:07.3]} 21. Qxc4 {[%clk 0:02:09.1]} 21... Bh3 {[%clk 0:02:04.1]} 22. Bxh3
{[%clk 0:02:03.5]} 22... Qxh3 {[%clk 0:02:03.1]} 23. Ba3 {[%clk 0:02:03.7]}
23... Qd7 {[%clk 0:01:55.6]} 24. Rc1 {[%clk 0:01:57.2]} 24... h4 {[%clk
0:01:49.8]} 25. Qc7 {[%clk 0:01:40.6]} 25... Qxa4 {[%clk 0:01:47]} 26. Bxe7
{[%clk 0:01:40.4]} 26... hxg3 {[%clk 0:01:28.2]} 27. hxg3 {[%clk 0:01:38.7]}
27... Re8 {[%clk 0:01:27.7]} 28. Qxb7 {[%clk 0:01:36.5]} 28... Qb5 {[%clk
0:01:20.2]} 29. Qxb5 {[%clk 0:01:28.1]} 29... axb5 {[%clk 0:01:21.1]} 30. Bc5
{[%clk 0:01:24.8]} 30... Rb8 {[%clk 0:01:20.4]} 31. Rb1 {[%clk 0:01:24.7]} 31...
f5 {[%clk 0:01:15.4]} 32. Kf1 {[%clk 0:01:24.5]} 32... Kf7 {[%clk 0:01:15.8]}
33. Ra1 {[%clk 0:01:22.2]} 33... Rb7 {[%clk 0:01:15.3]} 34. Ra7 {[%clk
0:01:16.9]} 34... Rxa7 {[%clk 0:01:14.3]} 35. Bxa7 {[%clk 0:01:17.8]} 35... Ke6
{[%clk 0:01:14.3]} 36. Ke2 {[%clk 0:01:17.7]} 36... Kd5 {[%clk 0:01:13.8]} 37.
Kd3 {[%clk 0:01:17.9]} 37... g5 {[%clk 0:01:09.9]} 38. Bc5 {[%clk 0:01:16]}
38... g4 {[%clk 0:01:09.4]} 39. Bb4 {[%clk 0:01:07]} 39... Bf6 {[%clk
0:01:08.3]} 40. Ba5 {[%clk 0:01:03.3]} 40... Be7 {[%clk 0:01:08.2]} 41. Bc7
{[%clk 0:01:03.1]} 41... Bb4 {[%clk 0:01:08]} 42. Bf4 {[%clk 0:00:34.9]} 42...
Be1 {[%clk 0:01:01.7]} 43. Ke2 {[%clk 0:00:34.8]} 43... Ba5 {[%clk 0:01:02.3]}
44. Kd3 {[%clk 0:00:35.1]} 44... Bb4 {[%clk 0:00:55.7]} 45. Bg5 {[%clk
0:00:34.6]} 45... Bd6 {[%clk 0:00:55.4]} 46. Bf6 {[%clk 0:00:33.6]} 46... Ba3
{[%clk 0:00:51.8]} 47. Bg5 {[%clk 0:00:32.5]} 47... Bb4 {[%clk 0:00:47.5]} 48.
Ke2 {[%clk 0:00:31.5]} 48... Ke4 {[%clk 0:00:43.2]} 49. Bf4 {[%clk 0:00:23.9]}
49... Bc3 {[%clk 0:00:42.4]} 50. Kd1 {[%clk 0:00:22.4]} 50... Ba5 {[%clk
0:00:24.6]} 51. Kc2 {[%clk 0:00:20.5]} 51... Be1 {[%clk 0:00:24.5]} 52. Kb3
{[%clk 0:00:15.6]} 52... Kd5 {[%clk 0:00:23.4]} 53. Ka3 {[%clk 0:00:11.5]} 53...
Kc4 {[%clk 0:00:22]} 54. Kb2 {[%clk 0:00:09.8]} 54... Bxf2 {[%clk 0:00:20.5]}
55. Kc2 {[%clk 0:00:10.3]} 55... Be1 {[%clk 0:00:20.8]} 56. Be5 {[%clk
0:00:10.1]} 56... Bf2 {[%clk 0:00:20.4]} 57. Bf4 {[%clk 0:00:10.2]} 57... Bg1
{[%clk 0:00:21]} 58. Bg5 {[%clk 0:00:10.2]} 58... b4 {[%clk 0:00:20.3]} 59. Bf4
{[%clk 0:00:10.2]} 59... b3+ {[%clk 0:00:20.9]} 60. Kb2 {[%clk 0:00:10.3]} 60...
Bf2 {[%clk 0:00:21.8]} 61. Kb1 {[%clk 0:00:06.2]} 61... Be1 {[%clk 0:00:21.3]}
62. Kb2 {[%clk 0:00:04.7]} 62... Bc3+ {[%clk 0:00:21.6]} 63. Kb1 {[%clk
0:00:05]} 63... Kd5 {[%clk 0:00:21.2]} 64. Kc1 {[%clk 0:00:04.8]} 64... Ke4
{[%clk 0:00:19.6]} 65. Kb1 {[%clk 0:00:05.1]} 65... Kd5 {[%clk 0:00:13.4]} 66.
Kc1 {[%clk 0:00:05]} 66... Kc4 {[%clk 0:00:14.1]} 67. Kb1 {[%clk 0:00:05.3]}
67... Bb4 {[%clk 0:00:14.7]} 68. Kb2 {[%clk 0:00:05.5]} 68... Be7 {[%clk
0:00:14.9]} 69. Kb1 {[%clk 0:00:04.5]} 69... Bf8 {[%clk 0:00:14.9]} 70. Kc1
{[%clk 0:00:04.7]} 70... Kc3 {[%clk 0:00:15]} 71. Kb1 {[%clk 0:00:05.1]} 71...
Ba3 {[%clk 0:00:13.7]} 72. d5 {[%clk 0:00:05.1]} 72... Kc4 {[%clk 0:00:13.8]}
73. d6 {[%clk 0:00:05.4]} 73... Kd5 {[%clk 0:00:13.8]} 74. d7 {[%clk 0:00:05.7]}
74... Be7 {[%clk 0:00:12.4]} 75. Bc7 {[%clk 0:00:06.1]} 75... Ke4 {[%clk
0:00:08.5]} 76. d8=Q {[%clk 0:00:06.4]} 76... Bxd8 {[%clk 0:00:09.3]} 77. Bxd8
{[%clk 0:00:07.3]} 77... Kxe3 {[%clk 0:00:09.4]} 78. Bc7 {[%clk 0:00:07.8]}
78... Kd3 {[%clk 0:00:09.5]} 79. Kb2 {[%clk 0:00:06.9]} 79... Kc4 {[%clk
0:00:09]} 80. Bf4 {[%clk 0:00:06.7]} 80... Kb4 {[%clk 0:00:09.3]} 81. Bd2+
{[%clk 0:00:05.9]} 81... Kc4 {[%clk 0:00:10.2]} 82. Bf4 {[%clk 0:00:06.2]} 82...
Kb4 {[%clk 0:00:10.6]} 83. Bg5 {[%clk 0:00:06.6]} 83... Kc4 {[%clk 0:00:11.1]}
84. Be7 {[%clk 0:00:06.3]} 84... f4 {[%clk 0:00:07.3]} 85. gxf4 {[%clk
0:00:06.1]} 85... g3 {[%clk 0:00:08.2]} 86. Bd8 {[%clk 0:00:04.5]} 86... Kb5
{[%clk 0:00:07.7]} 87. Bh4 {[%clk 0:00:03.4]} 87... g2 {[%clk 0:00:08]} 88. Bf2
{[%clk 0:00:03.8]} 88... Kc4 {[%clk 0:00:08.7]} 89. f5 {[%clk 0:00:03.3]} 89...
Kd5 {[%clk 0:00:09.2]} 90. Kxb3 {[%clk 0:00:02.2]} 90... Ke5 {[%clk 0:00:09.8]}
91. Kc2 {[%clk 0:00:02.7]} 91... Kxf5 {[%clk 0:00:10.3]} 92. Kd2 {[%clk
0:00:03.4]} 92... Kg4 {[%clk 0:00:11.1]} 93. Ke2 {[%clk 0:00:03.9]} 93... Kh3
{[%clk 0:00:11.2]} 94. Bc5 {[%clk 0:00:04.4]} 94... Kg3 {[%clk 0:00:11.8]} 95.
Bd4 {[%clk 0:00:04.6]} 95... Kh3 {[%clk 0:00:12.3]} 96. Bc5 {[%clk 0:00:05]}
96... Kg3 {[%clk 0:00:13.2]} 97. Bd4 {[%clk 0:00:05.5]} 97... Kh2 {[%clk
0:00:13.9]} 98. Bc5 {[%clk 0:00:05.9]} 98... Kh1 {[%clk 0:00:14.4]} 99. Bd4
{[%clk 0:00:06.1]} 99... Kh2 {[%clk 0:00:15.1]} 100. Bc5 {[%clk 0:00:06.5]}
100... Kg3 {[%clk 0:00:15.9]} 1/2-1/2

[Event "Late-Titled-Tuesday-Blitz-June-25-2024"]
[Site "Chess.com"]
[Date "2024.06.25"]
[Round "8"]
[White "karinachess1"]
[Black "BardArtem"]
[Result "0-1"]
[WhiteElo "2683"]
[BlackElo "2825"]
[TimeControl "180+1"]
[EndTime "15:29:23 PDT"]
[Termination "BardArtem won on time"]

1. d4 {[%clk 0:03:00.2]} 1... d5 {[%clk 0:02:59.5]} 2. c4 {[%clk 0:03:00.3]}
2... e6 {[%clk 0:02:58.9]} 3. Nc3 {[%clk 0:03:00.3]} 3... Nf6 {[%clk 0:02:55.1]}
4. cxd5 {[%clk 0:03:00.4]} 4... Nxd5 {[%clk 0:02:56]} 5. e4 {[%clk 0:02:59.2]}
5... Nxc3 {[%clk 0:02:55.1]} 6. bxc3 {[%clk 0:03:00.1]} 6... c5 {[%clk
0:02:54.9]} 7. Nf3 {[%clk 0:02:53]} 7... cxd4 {[%clk 0:02:54.7]} 8. cxd4 {[%clk
0:02:53.9]} 8... Bb4+ {[%clk 0:02:50.1]} 9. Bd2 {[%clk 0:02:54.2]} 9... Bxd2+
{[%clk 0:02:50.7]} 10. Qxd2 {[%clk 0:02:55.1]} 10... O-O {[%clk 0:02:51.4]} 11.
h4 {[%clk 0:02:54.6]} 11... b6 {[%clk 0:02:47.6]} 12. h5 {[%clk 0:02:49.3]}
12... h6 {[%clk 0:02:46.4]} 13. Rd1 {[%clk 0:02:41.9]} 13... Ba6 {[%clk
0:02:35.9]} 14. Bxa6 {[%clk 0:02:33.4]} 14... Nxa6 {[%clk 0:02:36.8]} 15. Rh3
{[%clk 0:02:33.6]} 15... Rc8 {[%clk 0:02:32.5]} 16. Rg3 {[%clk 0:02:32.6]} 16...
Kh8 {[%clk 0:02:32.4]} 17. Ne5 {[%clk 0:02:23.3]} 17... Qh4 {[%clk 0:02:22.8]}
18. Qe2 {[%clk 0:02:05.3]} 18... Nb4 {[%clk 0:02:15.3]} 19. Rh3 {[%clk
0:02:00.2]} 19... Qg5 {[%clk 0:01:56.7]} 20. Rg3 {[%clk 0:01:17.7]} 20... Qh4
{[%clk 0:01:53.7]} 21. Rh3 {[%clk 0:01:17.6]} 21... Qe7 {[%clk 0:01:50.6]} 22.
Kf1 {[%clk 0:01:08.6]} 22... Rc2 {[%clk 0:01:37.4]} 23. Qg4 {[%clk 0:01:08.5]}
23... Nc6 {[%clk 0:01:27.6]} 24. Rg3 {[%clk 0:01:06.8]} 24... Rg8 {[%clk
0:01:26.5]} 25. Nxc6 {[%clk 0:00:56.4]} 25... Rxc6 {[%clk 0:01:26.1]} 26. d5
{[%clk 0:00:50.7]} 26... exd5 {[%clk 0:01:21.3]} 27. exd5 {[%clk 0:00:51.6]}
27... Rf6 {[%clk 0:01:19.7]} 28. Kg1 {[%clk 0:00:48.1]} 28... Qc5 {[%clk
0:01:07]} 29. Rf3 {[%clk 0:00:43.3]} 29... Qd6 {[%clk 0:00:06]} 30. Rxf6 {[%clk
0:00:41]} 30... gxf6 {[%clk 0:00:05.2]} 31. Qf3 {[%clk 0:00:39.4]} 31... Rg5
{[%clk 0:00:05.5]} 32. g3 {[%clk 0:00:34.8]} 32... Kg7 {[%clk 0:00:05.8]} 33.
Kg2 {[%clk 0:00:34.3]} 33... b5 {[%clk 0:00:05]} 34. Qb3 {[%clk 0:00:27.3]}
34... a6 {[%clk 0:00:04.6]} 35. Qf3 {[%clk 0:00:27.8]} 35... b4 {[%clk 0:00:04]}
36. Rd4 {[%clk 0:00:20]} 36... a5 {[%clk 0:00:03.8]} 37. Rg4 {[%clk 0:00:19.1]}
37... a4 {[%clk 0:00:03.2]} 38. Rxg5+ {[%clk 0:00:18.5]} 38... fxg5 {[%clk
0:00:04.1]} 39. Qd3 {[%clk 0:00:16.4]} 39... Kf6 {[%clk 0:00:01.7]} 40. Qd4+
{[%clk 0:00:15]} 40... Ke7 {[%clk 0:00:02]} 41. Qe4+ {[%clk 0:00:13.5]} 41...
Kd7 {[%clk 0:00:01.8]} 42. Qf5+ {[%clk 0:00:13.5]} 42... Ke7 {[%clk 0:00:02.2]}
43. Qe4+ {[%clk 0:00:14]} 43... Kf8 {[%clk 0:00:02.9]} 44. Qc4 {[%clk
0:00:12.6]} 44... Kg7 {[%clk 0:00:01.8]} 45. Qd4+ {[%clk 0:00:10.6]} 45... Kf8
{[%clk 0:00:02.4]} 46. Qc4 {[%clk 0:00:10.6]} 46... Ke8 {[%clk 0:00:02.6]} 47.
Qb5+ {[%clk 0:00:10.2]} 47... Ke7 {[%clk 0:00:03]} 48. Qe2+ {[%clk 0:00:08.9]}
48... Kd8 {[%clk 0:00:02.9]} 49. Qb5 {[%clk 0:00:08.4]} 49... a3 {[%clk
0:00:02.3]} 50. Qc4 {[%clk 0:00:06.3]} 50... f5 {[%clk 0:00:02.4]} 51. Qd3
{[%clk 0:00:06.3]} 51... Qe5 {[%clk 0:00:01.5]} 52. f3 {[%clk 0:00:04.8]} 52...
Ke7 {[%clk 0:00:01.5]} 53. Qc4 {[%clk 0:00:04.5]} 53... Qb2+ {[%clk 0:00:01.3]}
54. Kh3 {[%clk 0:00:04.9]} 54... Qc3 {[%clk 0:00:02.1]} 55. Qe2+ {[%clk
0:00:01.5]} 55... Kd6 {[%clk 0:00:02.5]} 56. Qb5 {[%clk 0:00:02.2]} 56... g4+
{[%clk 0:00:02.1]} 57. fxg4 {[%clk 0:00:01.9]} 57... fxg4+ {[%clk 0:00:03]} 58.
Kxg4 {[%clk 0:00:02.2]} 58... b3 {[%clk 0:00:03.7]} 59. Qb6+ {[%clk 0:00:01.7]}
59... Kxd5 {[%clk 0:00:03.9]} 60. Qb5+ {[%clk 0:00:02.4]} 60... Kd4 {[%clk
0:00:02.9]} 61. axb3 {[%clk 0:00:03.3]} 61... Qb2 {[%clk 0:00:02.5]} 62. Qa4+
{[%clk 0:00:03.6]} 62... Kc3 {[%clk 0:00:02.5]} 63. Qc4+ {[%clk 0:00:04.2]}
63... Kd2 {[%clk 0:00:03.1]} 64. Qd5+ {[%clk 0:00:05]} 64... Kc1 {[%clk
0:00:03.2]} 65. Qc4+ {[%clk 0:00:05.3]} 65... Kb1 {[%clk 0:00:03.8]} 66. Qf1+
{[%clk 0:00:05.3]} 66... Kc2 {[%clk 0:00:03.5]} 67. Qe2+ {[%clk 0:00:05.3]}
67... Kxb3 {[%clk 0:00:03.9]} 68. Qb5+ {[%clk 0:00:05.4]} 68... Kc2 {[%clk
0:00:04.1]} 69. Qc4+ {[%clk 0:00:05.5]} 69... Qc3 {[%clk 0:00:03.8]} 70. Qa2+
{[%clk 0:00:05.2]} 70... Kd3 {[%clk 0:00:02.7]} 71. Kh3 {[%clk 0:00:05]} 71...
Kd4 {[%clk 0:00:02]} 72. Qe2 {[%clk 0:00:04.8]} 72... Kc5 {[%clk 0:00:02.2]} 73.
Qe7+ {[%clk 0:00:03]} 73... Kc4 {[%clk 0:00:02.4]} 74. Qc7+ {[%clk 0:00:01.6]}
74... Kd3 {[%clk 0:00:02.9]} 75. Qd6+ {[%clk 0:00:01.3]} 75... Kc2 {[%clk
0:00:03.5]} 76. Qg6+ {[%clk 0:00:01.6]} 76... Kb2 {[%clk 0:00:04]} 77. Qb6+
{[%clk 0:00:02]} 77... Ka1 {[%clk 0:00:04.6]} 0-1

[Event "Late-Titled-Tuesday-Blitz-June-25-2024"]
[Site "Chess.com"]
[Date "2024.06.25"]
[Round "8"]
[White "ManMish2"]
[Black "alexrustemov"]
[Result "1/2-1/2"]
[WhiteElo "2650"]
[BlackElo "2825"]
[TimeControl "180+1"]
[EndTime "15:31:13 PDT"]
[Termination "Game drawn by 50-move rule"]

1. e4 {[%clk 0:03:00.9]} 1... e6 {[%clk 0:03:00.1]} 2. d4 {[%clk 0:03:00]} 2...
d5 {[%clk 0:03:00.5]} 3. Nd2 {[%clk 0:03:00.4]} 3... dxe4 {[%clk 0:03:00.7]} 4.
Nxe4 {[%clk 0:03:01.2]} 4... Bd7 {[%clk 0:03:01.1]} 5. Nf3 {[%clk 0:03:00]} 5...
Bc6 {[%clk 0:03:01.6]} 6. Bd3 {[%clk 0:02:59.9]} 6... Nd7 {[%clk 0:03:02.1]} 7.
O-O {[%clk 0:02:57.6]} 7... Ngf6 {[%clk 0:03:02.5]} 8. Qe2 {[%clk 0:02:50.4]}
8... Nxe4 {[%clk 0:03:01.9]} 9. Bxe4 {[%clk 0:02:51.3]} 9... Bxe4 {[%clk
0:03:02.2]} 10. Qxe4 {[%clk 0:02:51.9]} 10... c6 {[%clk 0:03:02.7]} 11. Bg5
{[%clk 0:02:49.9]} 11... Be7 {[%clk 0:03:02.5]} 12. Bxe7 {[%clk 0:02:47.8]}
12... Qxe7 {[%clk 0:03:03.4]} 13. c4 {[%clk 0:02:47.6]} 13... O-O {[%clk
0:03:03.3]} 14. Rad1 {[%clk 0:02:45.5]} 14... Rad8 {[%clk 0:03:00]} 15. Rfe1
{[%clk 0:02:44.9]} 15... Rfe8 {[%clk 0:02:59.3]} 16. h3 {[%clk 0:02:35]} 16...
h6 {[%clk 0:02:59]} 17. a3 {[%clk 0:02:30.1]} 17... a5 {[%clk 0:02:58.5]} 18.
Qf4 {[%clk 0:02:19]} 18... Nf6 {[%clk 0:02:54.8]} 19. Qd2 {[%clk 0:02:00.6]}
19... Qc7 {[%clk 0:02:52.2]} 20. b4 {[%clk 0:01:53.1]} 20... axb4 {[%clk
0:02:50.1]} 21. axb4 {[%clk 0:01:52.6]} 21... b5 {[%clk 0:02:49.9]} 22. Qc2
{[%clk 0:01:47.6]} 22... Qb7 {[%clk 0:02:34.3]} 23. Rc1 {[%clk 0:01:42.2]} 23...
Rb8 {[%clk 0:02:31.5]} 24. Ne5 {[%clk 0:01:08.6]} 24... Rec8 {[%clk 0:02:31]}
25. Rb1 {[%clk 0:00:52.6]} 25... bxc4 {[%clk 0:02:28.4]} 26. Qxc4 {[%clk
0:00:53.5]} 26... Qb5 {[%clk 0:02:19.2]} 27. Rec1 {[%clk 0:00:53.5]} 27... Nd5
{[%clk 0:01:37.2]} 28. Nxc6 {[%clk 0:00:32.3]} 28... Rb6 {[%clk 0:01:35.9]} 29.
Qxb5 {[%clk 0:00:16.2]} 29... Rxb5 {[%clk 0:01:36.8]} 30. Rc4 {[%clk 0:00:16.1]}
30... Rc7 {[%clk 0:01:25.6]} 31. Rbc1 {[%clk 0:00:14.6]} 31... Rcb7 {[%clk
0:01:24]} 32. Ne5 {[%clk 0:00:12.4]} 32... f6 {[%clk 0:01:07.2]} 33. Rc8+ {[%clk
0:00:07.2]} 33... Kh7 {[%clk 0:01:06.7]} 34. Nc6 {[%clk 0:00:07.9]} 34... Nxb4
{[%clk 0:01:00.2]} 35. Nxb4 {[%clk 0:00:06.1]} 35... Rxb4 {[%clk 0:01:01.1]} 36.
Re1 {[%clk 0:00:05.7]} 36... Rb1 {[%clk 0:00:45.4]} 37. Rxb1 {[%clk 0:00:05.4]}
37... Rxb1+ {[%clk 0:00:46.3]} 38. Kh2 {[%clk 0:00:05.7]} 38... Kg6 {[%clk
0:00:45.2]} 39. g4 {[%clk 0:00:03.7]} 39... Rd1 {[%clk 0:00:41.5]} 40. Rc6
{[%clk 0:00:04.2]} 40... Kf7 {[%clk 0:00:39.7]} 41. Rc7+ {[%clk 0:00:04.8]}
41... Kf8 {[%clk 0:00:39.8]} 42. Rc8+ {[%clk 0:00:05]} 42... Kf7 {[%clk
0:00:38.1]} 43. Rc7+ {[%clk 0:00:05.6]} 43... Kg6 {[%clk 0:00:38.4]} 44. Rc6
{[%clk 0:00:06.2]} 44... Re1 {[%clk 0:00:37.7]} 45. Kg2 {[%clk 0:00:06.8]} 45...
h5 {[%clk 0:00:35.9]} 46. Kg3 {[%clk 0:00:05.7]} 46... Rg1+ {[%clk 0:00:34.2]}
47. Kf3 {[%clk 0:00:05.2]} 47... Re1 {[%clk 0:00:31.7]} 48. Kg3 {[%clk
0:00:05.2]} 48... Kh6 {[%clk 0:00:27.1]} 49. f4 {[%clk 0:00:04.3]} 49... Re3+
{[%clk 0:00:25.3]} 50. Kg2 {[%clk 0:00:04.5]} 50... h4 {[%clk 0:00:23.1]} 51.
Rd6 {[%clk 0:00:03.1]} 51... Rg3+ {[%clk 0:00:16.9]} 52. Kh2 {[%clk 0:00:03.3]}
52... Rf3 {[%clk 0:00:17.5]} 53. Rxe6 {[%clk 0:00:03.3]} 53... Rf2+ {[%clk
0:00:17.2]} 54. Kg1 {[%clk 0:00:02.8]} 54... Rxf4 {[%clk 0:00:17.8]} 55. Rd6
{[%clk 0:00:03.5]} 55... Rf3 {[%clk 0:00:13.5]} 56. Kg2 {[%clk 0:00:04]} 56...
Rg3+ {[%clk 0:00:14]} 57. Kh2 {[%clk 0:00:04.7]} 57... Rd3 {[%clk 0:00:14.7]}
58. Rd7 {[%clk 0:00:04.9]} 58... g6 {[%clk 0:00:13.8]} 59. Rd5 {[%clk
0:00:04.2]} 59... Rd2+ {[%clk 0:00:13.6]} 60. Kg1 {[%clk 0:00:03.7]} 60... Kg7
{[%clk 0:00:13.9]} 61. Rd7+ {[%clk 0:00:03.2]} 61... Kf8 {[%clk 0:00:12.9]} 62.
d5 {[%clk 0:00:03.8]} 62... Ke8 {[%clk 0:00:12.9]} 63. Rh7 {[%clk 0:00:03.4]}
63... g5 {[%clk 0:00:12.6]} 64. Rh6 {[%clk 0:00:03.9]} 64... Ke7 {[%clk
0:00:12.4]} 65. Rh7+ {[%clk 0:00:04.4]} 65... Ke8 {[%clk 0:00:11]} 66. Rh6
{[%clk 0:00:04.3]} 66... Kf7 {[%clk 0:00:11.1]} 67. Rh7+ {[%clk 0:00:04.7]}
67... Kf8 {[%clk 0:00:09.2]} 68. Rh8+ {[%clk 0:00:04.3]} 68... Kg7 {[%clk
0:00:08.7]} 69. Rd8 {[%clk 0:00:04.5]} 69... Rd3 {[%clk 0:00:08.9]} 70. Kg2
{[%clk 0:00:03.8]} 70... Kf7 {[%clk 0:00:09.5]} 71. Rd7+ {[%clk 0:00:03.4]}
71... Ke8 {[%clk 0:00:09.6]} 72. Rd6 {[%clk 0:00:03.6]} 72... Ke7 {[%clk
0:00:09.9]} 73. Re6+ {[%clk 0:00:04.3]} 73... Kf7 {[%clk 0:00:10.4]} 74. Rd6
{[%clk 0:00:05]} 74... Rg3+ {[%clk 0:00:10.5]} 75. Kh2 {[%clk 0:00:04.8]} 75...
Kg6 {[%clk 0:00:10.5]} 76. Re6 {[%clk 0:00:04.2]} 76... Rd3 {[%clk 0:00:10.9]}
77. Rd6 {[%clk 0:00:04.5]} 77... Rd2+ {[%clk 0:00:10.7]} 78. Kg1 {[%clk
0:00:04]} 78... Kf7 {[%clk 0:00:11]} 79. Rd7+ {[%clk 0:00:03.6]} 79... Ke8
{[%clk 0:00:09.8]} 80. Rd6 {[%clk 0:00:04.3]} 80... Ke7 {[%clk 0:00:09.9]} 81.
Re6+ {[%clk 0:00:05]} 81... Kf7 {[%clk 0:00:10.2]} 82. Rd6 {[%clk 0:00:05.7]}
82... Rd3 {[%clk 0:00:09.6]} 83. Kg2 {[%clk 0:00:06.1]} 83... Rg3+ {[%clk
0:00:09.3]} 84. Kh2 {[%clk 0:00:06.7]} 84... Rf3 {[%clk 0:00:09.7]} 85. Kg2
{[%clk 0:00:06.3]} 85... Rf4 {[%clk 0:00:10.1]} 86. Rd7+ {[%clk 0:00:05.3]}
86... Ke8 {[%clk 0:00:10.6]} 87. Rh7 {[%clk 0:00:04.7]} 87... Rd4 {[%clk
0:00:09.9]} 88. Rh8+ {[%clk 0:00:05.3]} 88... Ke7 {[%clk 0:00:09]} 89. Rh7+
{[%clk 0:00:05.9]} 89... Kd6 {[%clk 0:00:09.2]} 90. Rf7 {[%clk 0:00:05.9]} 90...
Rf4 {[%clk 0:00:09.8]} 91. Rf8 {[%clk 0:00:04.7]} 91... Kxd5 {[%clk 0:00:10.3]}
92. Rd8+ {[%clk 0:00:05.3]} 92... Ke6 {[%clk 0:00:10.8]} 93. Re8+ {[%clk
0:00:06]} 93... Kf7 {[%clk 0:00:11.1]} 94. Ra8 {[%clk 0:00:06.9]} 94... Re4
{[%clk 0:00:11.4]} 95. Ra7+ {[%clk 0:00:07.1]} 95... Re7 {[%clk 0:00:11.6]} 96.
Ra6 {[%clk 0:00:06.3]} 96... Re2+ {[%clk 0:00:11.7]} 97. Kg1 {[%clk 0:00:05.7]}
97... Rd2 {[%clk 0:00:11.5]} 98. Rb6 {[%clk 0:00:04.8]} 98... Ke7 {[%clk
0:00:11.4]} 99. Ra6 {[%clk 0:00:05.1]} 99... Rd6 {[%clk 0:00:11.6]} 100. Ra8
{[%clk 0:00:05.5]} 100... Ke6 {[%clk 0:00:12]} 101. Kg2 {[%clk 0:00:05.1]}
101... Ke5 {[%clk 0:00:12.2]} 102. Ra4 {[%clk 0:00:04.3]} 102... Rd2+ {[%clk
0:00:12.1]} 103. Kg1 {[%clk 0:00:03.8]} 103... Rd4 {[%clk 0:00:12.3]} 104. Ra6
{[%clk 0:00:03.6]} 104... Rd6 {[%clk 0:00:11]} 105. Ra4 {[%clk 0:00:03.6]}
105... Rd5 {[%clk 0:00:11.1]} 106. Kg2 {[%clk 0:00:03.1]} 106... Rd2+ {[%clk
0:00:11.1]} 107. Kg1 {[%clk 0:00:03.6]} 107... Rd4 {[%clk 0:00:11]} 108. Ra6
{[%clk 0:00:03.3]} 108... Rf4 {[%clk 0:00:11.1]} 109. Kg2 {[%clk 0:00:01.5]}
109... Rc4 {[%clk 0:00:08.9]} 110. Ra5+ {[%clk 0:00:01.9]} 110... Ke4 {[%clk
0:00:08.7]} 111. Rf5 {[%clk 0:00:02.6]} 111... Rc2+ {[%clk 0:00:08.5]} 112. Kg1
{[%clk 0:00:03.2]} 112... Rc6 {[%clk 0:00:09.2]} 113. Kg2 {[%clk 0:00:03.1]}
113... Re6 {[%clk 0:00:09.4]} 114. Kg1 {[%clk 0:00:03.4]} 114... Kd3 {[%clk
0:00:09.7]} 115. Kg2 {[%clk 0:00:03.6]} 115... Ke2 {[%clk 0:00:10.1]} 116. Rf2+
{[%clk 0:00:02.8]} 116... Ke1 {[%clk 0:00:10.1]} 117. Rf5 {[%clk 0:00:03.7]}
117... Re2+ {[%clk 0:00:09.7]} 118. Kg1 {[%clk 0:00:02.9]} 118... Re3 {[%clk
0:00:09.8]} 119. Kg2 {[%clk 0:00:02.9]} 119... Re2+ {[%clk 0:00:08.7]} 120. Kg1
{[%clk 0:00:02.9]} 120... Re6 {[%clk 0:00:09.6]} 121. Kg2 {[%clk 0:00:03.3]}
121... Kd2 {[%clk 0:00:09.9]} 122. Rf2+ {[%clk 0:00:02.6]} 122... Ke3 {[%clk
0:00:09.4]} 123. Rf5 {[%clk 0:00:03.5]} 123... Ke4 {[%clk 0:00:09.8]} 124. Kf2
{[%clk 0:00:03.3]} 124... Rc6 {[%clk 0:00:09.6]} 125. Kg2 {[%clk 0:00:03.8]}
125... Rc2+ {[%clk 0:00:09.5]} 126. Kg1 {[%clk 0:00:04.4]} 126... Rc3 {[%clk
0:00:09.4]} 127. Kg2 {[%clk 0:00:04.7]} 127... Rg3+ {[%clk 0:00:09.7]} 128. Kh2
{[%clk 0:00:04.7]} 128... Rf3 {[%clk 0:00:10.2]} 129. Ra5 {[%clk 0:00:05]}
129... Rf2+ {[%clk 0:00:10.4]} 130. Kg1 {[%clk 0:00:05.2]} 130... Rf3 {[%clk
0:00:09.9]} 131. Kg2 {[%clk 0:00:05.3]} 131... Rg3+ {[%clk 0:00:10.3]} 132. Kh2
{[%clk 0:00:06]} 132... Rf3 {[%clk 0:00:08.9]} 133. Kg2 {[%clk 0:00:05.7]}
133... Rf4 {[%clk 0:00:09]} 134. Ra4+ {[%clk 0:00:05.1]} 134... Ke5 {[%clk
0:00:09.4]} 135. Ra5+ {[%clk 0:00:05.3]} 135... Ke6 {[%clk 0:00:10]} 136. Ra6+
{[%clk 0:00:05.9]} 136... Kf7 {[%clk 0:00:10.5]} 137. Ra7+ {[%clk 0:00:06.4]}
137... Kg6 {[%clk 0:00:10.9]} 138. Ra6 {[%clk 0:00:07.1]} 138... Rd4 {[%clk
0:00:10.7]} 139. Rb6 {[%clk 0:00:07.2]} 139... Rd2+ {[%clk 0:00:10.8]} 140. Kg1
{[%clk 0:00:06.5]} 140... Kf7 {[%clk 0:00:11]} 141. Ra6 {[%clk 0:00:05.9]}
141... Ke7 {[%clk 0:00:11.1]} 1/2-1/2